Cogmind - Beta 11 @@@ ROGUE MODE // 2022.04.07 @ 19:22:04 Player: Red Box Result: Self-destructed Performance ------------- Evolutions (2) 1000 Regions Visited (7) 1400 Robots Destroyed (110) 550 Value Destroyed (2810) 2810 Prototype IDs (35) 700 Alien Tech Used (0) 0 Bonus (437) 437 TOTAL SCORE: 6897 Bonus ------- High Alert Combat Kills 53 Follower Combat Kills 102 Aligned with FarCom 300 Friendly Fire -18 Cogmind --------- Core Integrity 295/550 Matter 294/300 Energy 275/275 System Corruption 2% Temperature Cool (0) Movement Rolling (165) Ox5 Location -8/Materials Parts ------- > --- POWER (1) -------- Deuterium Engine > --- PROPULSION (2) --- Armored Wheel Armored Wheel > --- UTILITY (6) ------ Thermal Generator Improved Heat Sink Huge Storage Unit Heavy Armor Plating PSU Rigger > --- WEAPON (2) ------- EM Pulse Cannon Heavy Assault Rifle > --- INVENTORY (25) --- Reinforced Ion Engine Cooled Ion Engine Deuterium Engine Deuterium Engine Compact Wheel Armored Wheel Armored Wheel Armored Wheel Advanced Heat Sink Cooling System High-capacity Storage Unit Medium Battery (150) Trap Scanner Machine Analyzer Improved Utility Shielding Hardened Heavy Armor Plating Improved Light Armor Plating Hardlight Generator Bomb Drone Bay (16/16) EMP Blaster Blade Saw Makeshift Axe Peak State ------------ > --- POWER ------------ Cooled Ion Engine > --- PROPULSION ------- Armored Wheel Armored Wheel > --- UTILITY ---------- Thermal Generator Improved Heat Sink Huge Storage Unit Heavy Armor Plating PSU Rigger > --- WEAPON ----------- EM Pulse Cannon Heavy Assault Rifle > --- INVENTORY -------- Reinforced Ion Engine Deuterium Engine Deuterium Engine Deuterium Engine Armored Wheel Armored Wheel Armored Wheel Advanced Heat Sink Cooling System High-capacity Storage Unit Medium Battery Trap Scanner Machine Analyzer Improved Utility Shielding Hardened Heavy Armor Plating Improved Light Armor Plating Hardlight Generator Bomb Drone Bay EMP Blaster Blade Saw Makeshift Axe [Rating: 40] Favorites ----------- Power Improved Ion Engine Engine Improved Ion Engine Propulsion Compact Wheel Leg Aluminum Leg Wheel Compact Wheel Utility Improved Heat Sink Device Improved Heat Sink Storage High-capacity Storage Unit Processor Improved Targeting Computer Protection Medium Armor Plating Weapon Light EM Pulse Cannon Energy Gun Heavy EM Pulse Gun Energy Cannon Light EM Pulse Cannon Ballistic Gun Assault Rifle Ballistic Cannon Light Cannon Launcher EMP Blaster Slashing Weapon Makeshift Axe Build | -11 -10 -10 -9 -9 -9 -8 -8 ------- Run | Scr Mat Min Mat Min Exi Min Mat Slots Evolved 4 | . . . 2 . . . 2 Power . | . . . . . . . . Propulsion . | . . . . . . . . Utility 4 | . . . 2 . . . 2 Weapon . | . . . . . . . . Parts Attached 87 | 7 20 6 26 . . . 28 Power 8 | 1 2 1 2 . . . 2 Engine 8 | 1 2 1 2 . . . 2 Core . | . . . . . . . . Reactor . | . . . . . . . . Propulsion 14 | 2 7 1 2 . . . 2 Treads . | . . . . . . . . Leg 2 | 2 . . . . . . . Wheel 12 | . 7 1 2 . . . 2 Hover . | . . . . . . . . Flight . | . . . . . . . . Utility 29 | 2 5 1 12 . . . 9 Device 11 | 1 2 1 3 . . . 4 Storage 7 | 1 3 . 2 . . . 1 Processor 2 | . . . 2 . . . . Hackware . | . . . . . . . . Protection 9 | . . . 5 . . . 4 Artifact . | . . . . . . . . Weapon 36 | 2 6 3 10 . . . 15 Energy Gun 4 | . . . 1 . . . 3 Energy Cannon 18 | . 4 2 7 . . . 5 Ballistic Gun 5 | 2 2 . . . . . 1 Ballistic Cannon 1 | . . . 1 . . . . Launcher 7 | . . 1 1 . . . 5 Special Weapon . | . . . . . . . . Impact Weapon . | . . . . . . . . Slashing Weapon 1 | . . . . . . . 1 Piercing Weapon . | . . . . . . . . Special Melee Weapon . | . . . . . . . . Unidentified Prototypes 2 | . . . 2 . . . . Parts Lost 21 | . 1 3 4 . . . 13 Power 3 | . 1 1 . . . . 1 Propulsion 4 | . . 1 1 . . . 2 Utility 4 | . . . . . . . 4 Weapon 10 | . . 1 3 . . . 6 Highest Loss Streak 7 | . 1 3 1 . . . 7 To Critical Strikes . | . . . . . . . . Average Slot Usage (%) 97 | . 99 99 98 100 100 100 89 Engine 11 | . 14 14 11 11 11 11 9 Wheel 22 | . 26 27 21 22 22 22 17 Device 13 | . 13 14 10 11 11 11 21 Storage 11 | . 14 14 11 11 11 11 9 Processor 6 | . . . 11 11 11 11 5 Protection 6 | . . . 9 11 11 11 9 Energy Cannon 20 | . 18 27 21 22 22 22 14 Ballistic Gun 2 | . 8 . . . . . . Naked Turns . | . . . . . . . . Heaviest Build 125 | 14 52 52 105 105 105 105 125 Greatest Support 32 | 20 32 32 32 32 32 32 32 Greatest Overweight (x) 5 | 1 2 3 3 3 3 3 5 Average Overweight (x) 1 | . 1 1 1 3 3 3 3 Largest Inventory Capacity 25 | 8 20 20 25 25 25 25 25 Average Capacity 21 | 7 19 20 20 25 25 25 25 Most Carried 25 | 8 20 20 24 24 25 25 25 Average Carried 20 | 5 18 19 19 23 24 25 22 Final Capacity 25 | 8 20 20 25 25 25 25 25 Final Carried 25 | 8 20 19 24 24 25 25 24 Class Distribution -------------------- 100% | Mutant Dominant Class ---------------- Mutant | -10/Materials Mutant | -10/Mines Mutant | -9/Materials Mutant | -9/Mines Mutant | -9/Exiles Mutant | -8/Mines Mutant | -8/Materials Resources | -11 -10 -10 -9 -9 -9 -8 -8 ----------- Run | Scr Mat Min Mat Min Exi Min Mat Matter Collected 1370 | 244 372 63 323 . . . 368 Remotely . | . . . . . . . . Salvage Created 4039 | 46 415 193 1495 124 . . 1766 Parts 240 | 7 29 12 100 6 . . 86 Haulers Intercepted 7 | . 2 . 4 . . . 1 Recyclers Shooed 1 | . . . . . . . 1 Parts Field Recycled . | . . . . . . . . Retrieved Matter . | . . . . . . . . Parts Self-Destructed . | . . . . . . . . Prevented . | . . . . . . . . Kills | -11 -10 -10 -9 -9 -9 -8 -8 ------- Run | Scr Mat Min Mat Min Exi Min Mat Combat Hostiles Destroyed 78 | . 10 5 31 2 . . 30 Melee 1 | . . . . . . . 1 Guns 5 | . 4 . . . . . 1 Cannons 51 | . 6 5 26 2 . . 12 AOE 14 | . . . 4 . . . 10 Classes Destroyed 14 | 1 5 . 3 . . . 5 Worker 5 | . 1 1 1 1 . . 1 Tunneler 4 | 3 . . . . . . 1 Hauler 7 | . 2 . 4 . . . 1 Recycler 4 | . . . 1 . . . 3 Operator 2 | . . . . . . . 2 Watcher 10 | . 2 . 5 . . . 3 Swarmer 23 | . 6 2 11 . . . 4 Cutter 4 | . . . . . . . 4 Grunt 35 | . 4 3 9 2 . . 17 Brawler 1 | . . . . . . . 1 Duelist 1 | . . . 1 . . . . Sentry 12 | . . . 10 . . . 2 Hunter 1 | . . . . . . . 1 Heavy 1 | . . . . . . . 1 Best Kill Streak 10 | 2 4 2 7 2 . . 10 Combat Bots Only 8 | . 3 2 5 1 . . 8 Max Kills in Single Turn 3 | 2 1 1 3 1 . . 3 Gunslinging . | . . . . . . . . Exploded 3 | . . . 2 . . . 3 Melee 1 | . . . . . . . 1 Uniques/NPCs Destroyed . | . . . . . . . . Combat | -11 -10 -10 -9 -9 -9 -8 -8 -------- Run | Scr Mat Min Mat Min Exi Min Mat Damage Taken 3962 | . 528 425 974 31 . . 2004 Core 777 | . 83 120 319 . . . 255 Absorbed by Shields 12 | . . . . . . . 12 Redirected to Shielding 16 | . . . 4 . . . 12 Regen/Repaired (Parts) 174 | . 145 . 29 . . . . Core Remaining (%) 46 | 100 . 18 . . . 20 . Volleys Fired 248 | 10 49 21 85 3 . . 80 Largest 2 | 2 2 2 2 2 . . 2 Hottest 126 | 40 120 120 120 119 . . 126 Shots Fired 486 | 20 98 41 168 6 . . 153 Gun 103 | 20 46 . . . . . 37 Cannon 369 | . 52 39 167 6 . . 105 Launcher 14 | . . 2 1 . . . 11 Special . | . . . . . . . . Kinetic 91 | 20 46 . 16 . . . 9 Thermal 168 | . 52 39 77 . . . . Explosive . | . . . . . . . . Electromagnetic 227 | . . 2 75 6 . . 144 Robot Hit Streak 20 | 4 5 9 20 3 . . 11 Robot Miss Streak 4 | 3 4 3 3 1 . . 4 Penetration Max . | . . . . . . . . Secondary Targets 2 | . 2 . . . . . . Max Gunslinging Chain 1 | . 1 . . . . . . Shots Hit Robots 300 | 10 49 22 115 4 . . 100 Core Hits 144 | 5 18 10 51 4 . . 56 Critical Kills . | . . . . . . . . Critical Parts Destroyed . | . . . . . . . . Critical Strikes 2 | . . . 1 . . . 1 Corrupt 2 | . . . 1 . . . 1 Melee Attacks 3 | . . . . . . . 3 Impact . | . . . . . . . . Slashing 3 | . . . . . . . 3 Piercing . | . . . . . . . . Sneak Attacks . | . . . . . . . . Combat Hostiles . | . . . . . . . . Follow-up Attacks . | . . . . . . . . Damage Inflicted 7733 | 100 775 457 2517 107 . . 3777 Guns 656 | 100 235 . . . . . 321 Cannons 5517 | . 540 422 2362 107 . . 2086 Explosions 1494 | . . 35 155 . . . 1304 Melee 66 | . . . . . . . 66 Ramming . | . . . . . . . . Kinetic 587 | 100 235 . 206 . . . 46 Thermal 2832 | . 540 422 967 . . . 903 Explosive . | . . . . . . . . Electromagnetic 4248 | . . 35 1344 107 . . 2762 Impact . | . . . . . . . . Slashing 66 | . . . . . . . 66 Piercing . | . . . . . . . . Highest Corruption 2 | . . . . . . . 2 Average Corruption 2 | . . . . . . . 2 Corruption Purged . | . . . . . . . . Corruption Blocked . | . . . . . . . . Overload Shots . | . . . . . . . . Overflow Damage 64 | . 14 . . . . . 50 Projectiles 63 | . 14 . . . . . 49 Explosions 1 | . . . . . . . 1 Melee . | . . . . . . . . Knockbacks 1 | . . . 1 . . . . Impact . | . . . . . . . . Kinetic 1 | . . . 1 . . . . Secondary . | . . . . . . . . Self-Inflicted Damage 60 | . . . . . . . 60 Shots 5 | . . . . . . . 5 Rammed . | . . . . . . . . Targets Rammed . | . . . . . . . . Kicked . | . . . . . . . . Crushed . | . . . . . . . . Highest Temperature 395 | . 282 117 93 54 . . 395 Average Temperature 63 | . 91 39 27 25 . . 94 Received Heat Transfer 1343 | . 114 279 246 18 . . 686 Effects 3 | . . . . . . . 3 Interference 2 | . . . . . . . 2 Matter Decay 1 | . . . . . . . 1 Siege Activations . | . . . . . . . . Robots Corrupted 9 | . . . 2 . . . 7 Combat Hostiles 7 | . . . 1 . . . 6 Parts Fried 27 | . . . 6 2 . . 19 Impact Corruptions . | . . . . . . . . Robots Melted . | . . . . . . . . Combat Hostiles . | . . . . . . . . Parts Melted 11 | . 4 3 2 . . . 2 Heat Transferred 5322 | . 1147 888 1987 . . . 1300 Parts Sabotaged . | . . . . . . . . Parts Stolen . | . . . . . . . . Parts Stripped . | . . . . . . . . Power Chain Reactions 14 | . . . 2 . . . 12 Missiles Intercepted . | . . . . . . . . Alert | -11 -10 -10 -9 -9 -9 -8 -8 ------- Run | Scr Mat Min Mat Min Exi Min Mat Peak Influence 529 | 15 169 209 395 131 . . 529 Initial 76 | . 9 . 16 76 . . . Average 149 | 4 36 82 269 94 . . 181 Maximum Alert Level 2 | . . 1 1 . . . 2 Low Security (%) 64 | 100 100 85 19 100 . 100 68 Level 1 31 | . . 14 80 . . . 10 Level 2 3 | . . . . . . . 21 Level 3 . | . . . . . . . . Level 4 . | . . . . . . . . Level 5 . | . . . . . . . . High Security . | . . . . . . . . Max Security . | . . . . . . . . Squads Dispatched 11 | . 2 . 3 . . . 6 Investigation 3 | . 1 . 1 . . . 1 Extermination . | . . . . . . . . Reinforcement 8 | . 1 . 2 . . . 5 Assault . | . . . . . . . . Garrison . | . . . . . . . . Intercept . | . . . . . . . . Searches Triggered . | . . . . . . . . Construction Impeded 2 | . . . . . . . 2 Haulers Reinforced . | . . . . . . . . Active Scanning Responses . | . . . . . . . . Cargo Convoy Interrupts . | . . . . . . . . Stealth | -11 -10 -10 -9 -9 -9 -8 -8 --------- Run | Scr Mat Min Mat Min Exi Min Mat Distress Signals 6 | . 1 . 3 . . . 2 Communications Jammed . | . . . . . . . . Distress Signals . | . . . . . . . . Times Spotted 114 | . 16 9 44 1 . . 44 Peak Tracking Total 7 | . 3 3 5 1 . . 7 Tactical Retreats 2 | . . . . . . . 2 Traps | -11 -10 -10 -9 -9 -9 -8 -8 ------- Run | Scr Mat Min Mat Min Exi Min Mat Traps Triggered 2 | . 1 . . . . . 1 Indirectly . | . . . . . . . . Trap Hack Attempts . | . . . . . . . . Triggered . | . . . . . . . . Disarmed . | . . . . . . . . Reprogrammed . | . . . . . . . . Reused . | . . . . . . . . Traps Extracted . | . . . . . . . . Installed . | . . . . . . . . Triggered . | . . . . . . . . Power Sources Rigged 4 | . . . . . . . 4 Exploded 2 | . . . . . . . 2 Machines | -11 -10 -10 -9 -9 -9 -8 -8 ---------- Run | Scr Mat Min Mat Min Exi Min Mat Machines Disabled 4 | . . . 2 . . . 2 Max in Single Turn 1 | . . . 1 . . . 1 Machines Sabotaged . | . . . . . . . . Garrisons Compromised . | . . . . . . . . Overloaded Fab Kills . | . . . . . . . . Hacking | -11 -10 -10 -9 -9 -9 -8 -8 --------- Run | Scr Mat Min Mat Min Exi Min Mat Machines Accessed 29 | . 8 1 15 . 2 . 3 Terminals 18 | . 5 . 11 . . . 2 Fabricators . | . . . . . . . . Repair Stations 2 | . 1 . 1 . . . . Recycling Units 5 | . 2 . 2 . . . 1 Scanalyzers 1 | . . . 1 . . . . Garrison Access . | . . . . . . . . Total Hacks 94 | . 27 1 51 . 2 . 13 Successful 58 | . 19 1 27 . 2 . 9 Failed 36 | . 8 . 24 . . . 4 Catastrophic . | . . . . . . . . Database Lockouts . | . . . . . . . . Manual 48 | . 5 . 33 . 1 . 9 Terminals 60 | . 13 . 38 . . . 9 Fabricators . | . . . . . . . . Repair Stations 12 | . 9 . 3 . . . . Recycling Units 13 | . 5 . 4 . . . 4 Scanalyzers 6 | . . . 6 . . . . Garrison Access . | . . . . . . . . Terminal Hacks 22 | . 5 1 9 . 2 . 5 Record 2 | . . . 1 . 1 . . Robot Analysis 3 | . . . 2 . . . 1 Prototype ID Bank 5 | . 1 . 3 . . . 1 Open Door 1 | . . 1 . . . . . Branch Access Points 1 | . . . . . . . 1 Terminal Index 3 | . 1 . 1 . . . 1 Unreport Threat 2 | . . . 2 . . . . Locate Traps 4 | . 3 . . . . . 1 EX-Prototype ID Bank 1 | . . . . . 1 . . Fabricator Hacks . | . . . . . . . . Repair Station Hacks 10 | . 8 . 2 . . . . Scan Component 5 | . 4 . 1 . . . . Repair 5 | . 4 . 1 . . . . Recycling Unit Hacks 5 | . 2 . 2 . . . 1 Retrieve Components 5 | . 2 . 2 . . . 1 Scanalyzer 6 | . . . 6 . . . . Insert Component 3 | . . . 3 . . . . Analyze 3 | . . . 3 . . . . Garrison Access Hacks . | . . . . . . . . Unauthorized Hacks 15 | . 4 . 8 . . . 3 Terminals 12 | . 3 . 7 . . . 2 Track 1 | . . . 1 . . . . Assimilate 4 | . 1 . 3 . . . . Botnet 4 | . 1 . 2 . . . 1 Operators 3 | . 1 . 1 . . . 1 Fabricators . | . . . . . . . . Repair Stations . | . . . . . . . . Recycling Units 3 | . 1 . 1 . . . 1 Reject 3 | . 1 . 1 . . . 1 Scanalyzers . | . . . . . . . . Garrison Access . | . . . . . . . . Data Cores Recovered 2 | . . . . . . . 2 Used . | . . . . . . . . Hacking Detections 22 | . 6 . 14 . . . 2 Full Trace Events 2 | . . . 1 . . . 1 Feedback Events . | . . . . . . . . Feedback Blocked . | . . . . . . . . Robot Schematics Acquired . | . . . . . . . . Robots Built . | . . . . . . . . Authchips . | . . . . . . . . Time . | . . . . . . . . Total Robot Build Rating . | . . . . . . . . Part Schematics Acquired 2 | . . . 2 . . . . Parts Built . | . . . . . . . . Authchips . | . . . . . . . . Time . | . . . . . . . . Total Part Build Rating . | . . . . . . . . Parts Repaired 5 | . 4 . 1 . . . . Time 154 | . 116 . 38 . . . . Parts Recycled . | . . . . . . . . Recycled Matter . | . . . . . . . . Retrieved Matter . | . . . . . . . . Retrieved Components 34 | . 6 . 18 . . . 10 Parts Scanalyzed 3 | . . . 3 . . . . Part Schematics Acquired 2 | . . . 2 . . . . Parts Damaged . | . . . . . . . . Bothacking | -11 -10 -10 -9 -9 -9 -8 -8 ------------ Run | Scr Mat Min Mat Min Exi Min Mat Used RIF Installer . | . . . . . . . . Robots Hacked . | . . . . . . . . Non-combat . | . . . . . . . . Combat . | . . . . . . . . Robot Hacks Applied . | . . . . . . . . Relay Couplers Released . | . . . . . . . . Fabnet Peak Effective % . | . . . . . . . . Robots Rewired . | . . . . . . . . Allies Hacked . | . . . . . . . . Hacks Repelled . | . . . . . . . . Allies | -11 -10 -10 -9 -9 -9 -8 -8 -------- Run | Scr Mat Min Mat Min Exi Min Mat Total Allies 5 | . 1 2 2 . . . . Largest Group 3 | . 1 3 2 2 2 2 2 Highest-Rated Group 61 | . 10 61 41 20 20 20 20 Highest-Rated Ally 31 | . 10 31 31 10 10 10 10 Total Orders 27 | . . 2 20 . . . 5 STAY 15 | . . 1 11 . . . 3 ROAM 1 | . . . . . . . 1 FOLLOW 11 | . . 1 9 . . . 1 Ally Attacks 20 | . . 18 2 . . . . Total Damage 345 | . . 325 20 . . . . Kills 5 | . . 5 . . . . . Allies Corrupted . | . . . . . . . . Allies Melted . | . . . . . . . . Intel | -11 -10 -10 -9 -9 -9 -8 -8 ------- Run | Scr Mat Min Mat Min Exi Min Mat Robot Analysis Total 3 | . . . 2 . . . 1 Derelict Logs Recovered 3 | . . 1 . 2 . . . Drone Launches . | . . . . . . . . Drone Recoveries . | . . . . . . . . Exploration | -11 -10 -10 -9 -9 -9 -8 -8 ------------- Run | Scr Mat Min Mat Min Exi Min Mat Turns Passed 8143 | 172 2080 569 2599 514 740 159 1310 Spaces Moved 4898 | 103 1273 391 1708 343 487 110 483 Core 2 | 2 . . . . . . . Treads . | . . . . . . . . Legs 152 | 101 51 . . . . . . Wheels 4744 | . 1222 391 1708 343 487 110 483 Hover . | . . . . . . . . Flight . | . . . . . . . . Fastest Speed 50 | 50 105 115 115 145 145 145 145 Average Speed 124 | 122 110 115 118 145 145 145 151 Slowest Speed 190 | 190 120 145 145 145 145 145 165 Overloaded Moves . | . . . . . . . . Propulsion Burnouts . | . . . . . . . . Robots Hopped . | . . . . . . . . Cave-ins Triggered . | . . . . . . . . Exploration Rate (%) 61 | 5 98 83 98 69 70 36 31 Regions Visited 7 Branch Regions 4 Pre-discovered Areas 1 | . . . . . 1 . . Known Exits Taken 2 | . . . 1 . . 1 . Unknown Exits Taken 5 | 1 1 1 . 1 1 . . Scrap Searched 3 | . . 2 . 1 . . . Spaces Dug . | . . . . . . . . Terrain Destroyed 40 | . . . 9 . . . 31 Melee . | . . . . . . . . Projectile . | . . . . . . . . AOE 40 | . . . 9 . . . 31 Terrain Rammed . | . . . . . . . . Walls Destroyed . | . . . . . . . . Machines Disabled . | . . . . . . . . Actions | -11 -10 -10 -9 -9 -9 -8 -8 --------- Run | Scr Mat Min Mat Min Exi Min Mat Total 6459 | 127 1849 469 2128 354 521 109 902 Wait 1066 | . 460 46 248 7 34 . 271 Move 4891 | 102 1272 390 1707 342 486 109 483 Hop . | . . . . . . . . Pick Up 95 | 8 29 3 31 1 1 . 22 Fast Attach 20 | 7 5 . 5 . . . 3 Attach 33 | . 3 3 11 . . . 16 Detach 3 | . . . 1 . . . 2 Swap 34 | . 12 3 10 . . . 9 Drop 62 | . 19 3 30 1 . . 9 Fire 248 | 10 49 21 85 3 . . 80 Melee 3 | . . . . . . . 3 Ram . | . . . . . . . . Kick . | . . . . . . . . Crush . | . . . . . . . . Escape Stasis . | . . . . . . . . Rewire . | . . . . . . . . Trap 4 | . . . . . . . 4 Miscellaneous . | . . . . . . . . Route ------- -11/Scrapyard -10/Materials (discovered 4 exits: *Mat x3 / *Min) -10/Mines (discovered 2 exits: *Mat x2) -9/Materials (discovered 4 exits: *Mat x3 / *Min) -9/Mines -9/Exiles (discovered 2 exits: [*Min x2]) -8/Mines -8/Materials (discovered 3 exits: Fac x3) History --------- Turn | Location | Event 26 | -11/Scrapyard | Discovered new exit (range 15) 173 | -11/Scrapyard | Entered Materials 300 | -10/Materials | Build established: Mutant 301 | -10/Materials | Discovered new exit (range 12) 638 | -10/Materials | Discovered new exit (range 8) 728 | -10/Materials | Discovered new exit (range 13) 1004 | -10/Materials | Discovered new exit (range 8) 1859 | -10/Materials | Repaired Imp. Terrain Scanner 1886 | -10/Materials | Repaired Heat Sink 1914 | -10/Materials | Repaired Beam Cannon 1942 | -10/Materials | Repaired Beam Cannon 2253 | -10/Materials | Entered Mines 2253 | -10/Mines | Accompanied by 1 ally 2415 | -10/Mines | Discovered new exit (range 14) 2554 | -10/Mines | Core integrity fell below 50% 2628 | -10/Mines | Learned 8 Materials zone layouts 2660 | -10/Mines | Core integrity fell below 20% 2696 | -10/Mines | Lost 3 parts (1p1n1w) 2707 | -10/Mines | Found the Drone Emporium 2712 | -10/Mines | Found Prototype Device 2802 | -10/Mines | Discovered new exit (range 10) 2822 | -10/Mines | Entered Materials 2822 | -9/Materials | Accompanied by 2 allies 2822 | -9/Materials | Evolved 2 slots: Utility x2 2823 | -9/Materials | Identified exit to Mines 2823 | -9/Materials | Identified exit to Materials 2824 | -9/Materials | Identified Bomb Drone Bay 2827 | -9/Materials | Led the pair of lost Derelicts to an unsafe place 3034 | -9/Materials | Core integrity fell below 50% 3879 | -9/Materials | Discovered exit to Materials (range 5) 5223 | -9/Materials | Repaired Imp. Heat Sink 5421 | -9/Materials | Entered Mines 5421 | -9/Mines | Accompanied by 2 allies 5472 | -9/Mines | Learned location of 1 exit from Materials 5477 | -9/Mines | Learned location of 2 exits from Materials 5897 | -9/Mines | A weapon hastily lodged in a ceiling crevice suddenly fell to the ground 5921 | -9/Mines | Deemed a non-threat by the Exiles lab entrance 5921 | -9/Mines | Discovered new exit (range 5) 5935 | -9/Mines | Entered Exiles 5935 | -9/Exiles | Accompanied by 2 allies 5972 | -9/Exiles | Met 8R-AWN 5993 | -9/Exiles | Met EX-HEX 6044 | -9/Exiles | Met EX-BIN 6082 | -9/Exiles | Aligned with FarCom system 6083 | -9/Exiles | Given EX-Vault access code 6117 | -9/Exiles | Opened EX-Vault 6127 | -9/Exiles | Found PSU Rigger 6160 | -9/Exiles | Warned to stay clear of 0b10 Research branches 6199 | -9/Exiles | Met EX-DEC 6205 | -9/Exiles | Learned location of Zion (-6) 6369 | -9/Exiles | Discovered new exit (range 14) 6664 | -9/Exiles | Discovered new exit (range 10) 6675 | -9/Exiles | Left Exiles lab with PSU Rigger 6675 | -9/Exiles | Entered Mines 6675 | -8/Mines | Accompanied by 2 allies 6813 | -8/Mines | Discovered exit to Materials (range 9) 6834 | -8/Mines | Entered Materials 6834 | -8/Materials | Accompanied by 2 allies 6834 | -8/Materials | Evolved 2 slots: Utility x2 6835 | -8/Materials | Identified exit to Factory 7688 | -8/Materials | Lost 7 parts (1p2n2u2w) 7804 | -8/Materials | Destroyed 8 combat bots 8144 | -8/Materials | Self-destructed Last Messages --------------- 08124_ Connecting with Recycling Unit... 08124_ ALERT: Suspicious activity at Recycling Unit M002. Dispatching Investigation squad. 08125_ U-05 Engineer lays Concrete. 08127_ K-01 Serf collects debris. 08128_ U-05 Engineer lays Concrete. 08132_ K-01 Serf collects debris. 08134_ Acquired data core, extracted dynamic key. 08134_ Decrypted 4 local trap positions from data. 08144_ Connecting with Terminal... >>Traps(Locate) Found 4 traps in 1 array: 4x Shock Trap Map updated. >>Access(Branch) No branch access points found. >>Prototypes Downloading prototype IDs... Cld. Deuterium Engine Enh. Autogun Map ----- +----------------------------------------------------+ | ?# !! #### ######### #??????# ##? | | ?# !! ] #??# # # #??????# %### | | ?# #??# / # #????### ### | | ?# """ """ #??# ### # #????# % ###+## | | ?# """ """ #??# #?# """ # ###### % | | ## """ """ #??# #?# """ # = %! | | # #??# #?# """ +% % ! [% | | #+###+########+### # !!==! * ! | % | | + # # """ ########### = % | | # # ?# """ #??#####??# ### ## | | [# # """""""?#[ """ ???????????####+##### | | # / """""""?# ???????????????? ????] | | ## # """""""?####???????????????? ""????? | | ##+## # """""?????????????????????? ""?????? ] | | =%!# # """""?????????????????????# ""???????] | | !*!!# # ?????????????????????# ?????????? | | !%==# #######?????????????????????# ?????????? | | ! !# #???#####???????????????????# = ?????????? | | = + #???#"""#???##########??????# ?????????? | | # #???#"Y"#???# #??????#????????????? | | ##%## #####"="##### """ #???????????????????? | | ?#### !*!=! # """ #???????????????????? | | ####" !=!= #*""" #???????????????????? | | #!! % """"" %+ """ ! #???????????????????? | | #!! " """"" /#=""" #???????????????????? | | #]] "" """ # @ #???????????????????? | | #]] ### "T" #???????????????????? | | #== #?# """ #???????????????????? | | #== " """"" #?##########???????????????????? | | #####^ """"""""" #??????????????????????????????? | | ????# ^ """ """ #??????????????????????????????? | | ????# ^ #??????????????????????????????? | | ????/ ^? #??????????????????????????????? | | ????# """??? +??????????????????????????????? | | ????# ""???? #??????????????????????????????? | | ????# "????? #??????????????????????????????? | | ????? ?????? ???????????????????????????????? | | ????? ???????? ???????????????????????????????? | | ????? ??????????????????????????????????????????? | | ?????????????????????????????????????????????????? | | ?????????????????????????????????????????????????? | | ?????????????????????????????????????????????????? | | ?????????????????????????????????????????????????? | | ?????????????????????????????????????????????????? | | ?????????????????????????????????????????????????? | | ?????????????????????????????????????????????????? | | ?????????????????????????????????????????????????? | | ?????????????????????????????????????????????????? | | ?????????????????????????????????????????????????? | | ?????????????????????????????????????????????????? | +----------------------------------------------------+ Best States ------------- Heat Dissipation 45 Energy Generation 14 Energy Capacity 515 Matter Stores 300 Matter Capacity 300 Sight Range 16 Terrain Scan Range 16 Terrain Scan Density 10 Armor Coverage 600 Core Shielding 20 Propulsion Shielding 33 Evasion (%) 55 Targeting Accuracy 6 Item Schematics ----------------- Cld. Ion Engine | -9/Materials | Scanalyzed EM Pulse Cannon | -9/Materials | Scanalyzed Robot Schematics ------------------ None Fabricated ------------ Nothing Alien Tech Used ----------------- None Achievements -------------- None Challenges ------------ None Game ------ Seed GravmagSignalExtractor Manual? 0 Play Time 01:15:25 Cumulative 251.8 hours Start 2022.04.07 @ 02:33:17 End 2022.04.07 @ 19:22:04 Sessions 3 Manual Loads 0 Difficulty Rogue Special Mode None Game No. 216 Rogue 216 Adventurer 0 Explorer 0 Win Type - Total 0 Types 0/0/0/0/0/0/0/0/0 Lore% 48 Gallery% 54 Achievement% 39 Wizard Run 0 Options --------- ASCII 0 Keyboard 0 Movement Mouse Keybinds 0 Fullscreen 1 Font 16/SmallcapsGlow Map View 75x55 Tactical HUD 1 Map Filters NONE Filters NONE Steam 1 RUN: 92414e53-1b1b-4516-bfed-230ea062bd31